bitfinex-derivatives/quotes_BTCF0:USTF0_20250129
["timestamp","ask_amount","ask_price","bid_price","bid_amount"]
[1738166131832,0.71144909,102100.0,102090.0,0.001]
[1738166132033,0.71144909,102100.0,102090.0,0.196973]
[1738166133036,0.71144909,102100.0,102090.0,0.001]
[1738166138425,0.76774909,102100.0,102090.0,0.001]
[1738166142637,0.66428418,102100.0,102080.0,0.00014684]
[1738166142938,0.196031,102060.0,102050.0,0.3074145]
[1738166143139,0.196031,102060.0,102050.0,0.76070659]
[1738166145231,0.196031,102060.0,102050.0,0.6682145]
[1738166145638,0.196031,102060.0,102050.0,0.76070659]
[1738166145830,0.25186884,102070.0,102060.0,0.196031]
[1738166146036,0.34436093,102070.0,102060.0,0.3608]
[1738166146942,0.25186884,102070.0,102060.0,0.556831]
[1738166147434,0.25286884,102070.0,102060.0,0.556831]
[1738166149048,0.34536093,102070.0,102060.0,0.3608]
[1738166150342,0.196031,102060.0,102050.0,0.67804657]
[1738166150538,0.28852309,102060.0,102050.0,0.67804657]
[1738166151741,0.28852309,102060.0,102050.0,0.68004657]
[1738166151941,0.28852309,102060.0,102050.0,0.68104657]
[1738166152143,0.28852309,102060.0,102050.0,0.42750757]
[1738166152446,0.28852309,102060.0,102050.0,0.0044695]
[1738166152447,0.79871518,102060.0,102050.0,0.0044695]
[1738166152745,0.70622309,102060.0,102050.0,0.0044695]
[1738166153446,0.70622309,102060.0,102050.0,0.003]
[1738166155546,0.79332409,102060.0,102050.0,0.003]
[1738166156638,0.84602409,102060.0,102050.0,0.003]
[1738166157844,0.93851618,102060.0,102050.0,0.003]
[1738166158144,0.84602409,102060.0,102050.0,0.003]
[1738166159549,0.85002409,102060.0,102050.0,0.001]
[1738166159938,0.19605,102050.0,102040.0,0.55700284]
[1738166160139,0.28854209,102050.0,102040.0,0.55700284]
[1738166161747,0.28854209,102050.0,102040.0,0.61200284]
[1738166161945,0.19605,102050.0,102040.0,0.25120284]
[1738166162150,0.28854209,102050.0,102040.0,0.19620284]
[1738166162348,0.34144209,102050.0,102040.0,0.19620284]
[1738166162645,0.34144209,102050.0,102040.0,0.00014684]
[1738166163149,0.34144209,102050.0,102040.0,0.00214684]
[1738166163548,0.70224209,102050.0,102040.0,0.00214684]
[1738166163747,0.70324209,102050.0,102040.0,0.00014684]
[1738166164145,0.71288721,102050.0,102040.0,0.00014684]
[1738166169462,0.91653278,102050.0,102040.0,0.00014684]
[1738166169762,0.91653278,102050.0,102040.0,0.19621584]
[1738166171861,0.55573278,102050.0,102040.0,0.19621584]
[1738166172061,0.40069557,102050.0,102040.0,0.64950793]
[1738166172266,0.40069557,102050.0,102040.0,0.61151584]
[1738166172857,0.49318766,102050.0,102040.0,0.61151584]
[1738166173457,0.85398766,102050.0,102040.0,0.19621584]
[1738166173765,0.54798766,102050.0,102040.0,0.19621584]
[1738166173961,0.90878766,102050.0,102040.0,0.19621584]
[1738166174167,0.90778766,102050.0,102040.0,0.00214684]
[1738166174566,0.54698766,102050.0,102040.0,0.19821584]
[1738166174968,0.54798766,102050.0,102040.0,0.19621584]
[1738166175167,0.43144309,102050.0,102040.0,0.19621584]
[1738166175662,0.43144309,102050.0,102040.0,0.19721584]
[1738166176069,0.284151,102050.0,102040.0,0.19721584]
[1738166176369,0.284151,102050.0,102040.0,0.55701584]
[1738166176565,0.284151,102050.0,102040.0,0.61021584]
[1738166177764,0.088101,102050.0,102040.0,0.70270793]
[1738166177964,0.087101,102050.0,102040.0,0.70470793]
[1738166178166,0.39968557,102060.0,102050.0,0.19605]
[1738166178365,0.39968557,102060.0,102050.0,0.66475]
[1738166181868,0.40068557,102060.0,102050.0,0.66475]
[1738166182170,0.088101,102060.0,102050.0,0.66475]
[1738166183876,0.284132,102060.0,102050.0,0.66475]
[1738166184671,0.37662409,102060.0,102050.0,0.30395]
[1738166185677,0.19605,102050.0,102040.0,0.19621484]
[1738166185874,0.28854209,102050.0,102040.0,0.19621484]
[1738166186270,0.64934209,102050.0,102040.0,0.00014684]
[1738166186480,0.70674209,102050.0,102040.0,0.00014684]
[1738166187176,0.70674209,102050.0,102040.0,0.00314684]
[1738166188076,0.70674209,102050.0,102040.0,0.00214684]
[1738166188473,0.196069,102040.0,102030.0,0.35070714]
[1738166188774,0.50939209,102040.0,102010.0,0.96525046]
[1738166189077,0.28860009,102020.0,102010.0,0.96445046]
[1738166189670,0.64940009,102020.0,102010.0,0.60365046]
[1738166189870,0.28860009,102020.0,102010.0,0.60365046]
[1738166190275,0.34470009,102020.0,102010.0,0.60365046]
[1738166190478,0.34470009,102020.0,102010.0,0.61165046]
[1738166190875,0.34470009,102020.0,102010.0,0.61465046]
[1738166191073,0.70550009,102020.0,102010.0,0.61465046]
[1738166191271,0.70550009,102020.0,102010.0,0.55795046]
[1738166191976,0.70550009,102020.0,102010.0,0.20724332]
[1738166191977,0.79260109,102020.0,102010.0,0.20724332]
[1738166193379,0.79260109,102020.0,102010.0,0.20324332]
[1738166194767,0.79260109,102020.0,102010.0,0.00712532]
[1738166194970,0.60624683,102020.0,102000.0,0.10161739]
[1738166195166,0.70541909,102010.0,102000.0,0.10161739]
[1738166196772,0.70641909,102010.0,102000.0,0.10161739]
[1738166196974,0.70641909,102010.0,102000.0,0.10361739]
[1738166197785,0.70641909,102010.0,102000.0,0.10161739]
[1738166197786,0.79891118,102010.0,102000.0,0.10161739]
[1738166198272,0.79891118,102010.0,102000.0,0.10014684]
[1738166198473,0.196185,101980.0,101970.0,0.90686833]
[1738166198675,0.28867709,101980.0,101970.0,0.90686833]
[1738166200271,0.28867709,101980.0,101970.0,0.613695]
[1738166200475,0.28867709,101980.0,101970.0,0.616695]
[1738166200687,0.28967709,101980.0,101970.0,0.63433572]
[1738166200987,0.28967709,101980.0,101970.0,0.624695]
[1738166202780,0.65047709,101980.0,101970.0,0.0677]
[1738166203090,0.65047709,101980.0,101970.0,0.011]
[1738166203091,0.70697709,101980.0,101970.0,0.011]
[1738166203389,0.79946918,101980.0,101970.0,0.01]
[1738166203789,0.79946918,101980.0,101960.0,0.00014684]
[1738166203790,0.60228418,101980.0,101960.0,0.00014684]
[1738166203988,0.85358818,101970.0,101960.0,0.00014684]
[1738166205286,0.72458418,101970.0,101940.0,0.196256]
[1738166205474,0.64953509,101950.0,101940.0,0.196256]
[1738166206484,0.70363509,101950.0,101940.0,0.196256]
[1738166207694,0.196262,101940.0,101930.0,1.0209264]
[1738166207893,0.28875409,101940.0,101930.0,1.0209264]
[1738166208079,0.28875409,101940.0,101930.0,0.72775307]
[1738166208277,0.28875409,101940.0,101930.0,0.26043907]
[1738166208677,0.28875409,101940.0,101930.0,0.25074306]
[1738166209786,0.28975409,101940.0,101930.0,0.25674306]
[1738166210888,0.197262,101940.0,101930.0,0.25974306]
[1738166211586,0.28975409,101940.0,101930.0,0.25974306]
[1738166212186,0.001,101940.0,101930.0,0.62054306]
[1738166212494,0.001,101940.0,101930.0,0.71303515]
[1738166217695,0.001,101940.0,101930.0,0.62054306]
[1738166218586,0.001,101940.0,101930.0,0.71303515]
[1738166220296,0.28887193,101960.0,101950.0,0.196243]
[1738166221398,0.19637984,101960.0,101950.0,0.196243]
[1738166221600,0.19637984,101960.0,101950.0,0.197243]
[1738166221802,0.19637984,101960.0,101950.0,0.558043]
[1738166222105,0.19637984,101960.0,101950.0,0.559043]
[1738166222500,0.00014684,101960.0,101950.0,0.65153509]
[1738166223805,0.00014684,101960.0,101950.0,0.559043]
[1738166224207,0.00014684,101960.0,101950.0,0.56864687]
[1738166228602,0.00014684,101960.0,101950.0,0.62084687]
[1738166230006,0.00147172,101970.0,101950.0,0.51709596]
[1738166230202,0.00147172,101970.0,101960.0,0.64951509]
[1738166230398,0.263697,101970.0,101960.0,0.75651509]
[1738166230597,0.263697,101970.0,101960.0,0.664023]
[1738166230806,0.55239309,101970.0,101960.0,0.609423]
[1738166231003,0.55239309,101970.0,101960.0,0.196223]
[1738166231713,0.55439309,101970.0,101960.0,0.196223]
[1738166232305,0.196223,101960.0,101950.0,0.61898171]
[1738166233009,0.196223,101960.0,101950.0,0.25818171]
[1738166233205,0.196223,101960.0,101950.0,0.61898171]
[1738166233712,0.196223,101960.0,101950.0,0.61998171]
[1738166235003,0.196223,101960.0,101950.0,0.62098171]
[1738166236722,0.196223,101960.0,101950.0,0.61137784]
[1738166236913,0.250023,101960.0,101950.0,0.61137784]
[1738166237116,0.50635858,101960.0,101950.0,0.61137784]
[1738166238113,0.00401058,101960.0,101950.0,1.00386993]
[1738166238305,0.00014684,101980.0,101970.0,0.196204]
[1738166238505,0.00014684,101980.0,101970.0,1.20888818]
[1738166238710,0.00014684,101980.0,101970.0,1.15238585]
[1738166238911,0.00014684,101980.0,101970.0,1.023904]
[1738166239117,0.19633184,101980.0,101970.0,0.972704]
[1738166239623,0.19633184,101980.0,101970.0,1.06519609]
[1738166239807,0.20233184,101980.0,101970.0,1.06519609]
[1738166240311,0.20233184,101980.0,101970.0,0.972704]
[1738166241013,0.25333184,101980.0,101970.0,0.972704]
[1738166241224,0.196204,101970.0,101960.0,0.623974]
[1738166241603,0.196204,101970.0,101960.0,0.196214]
[1738166241604,0.28869609,101970.0,101960.0,0.196214]
[1738166241921,0.196223,101960.0,101950.0,0.96480691]
[1738166242709,0.247223,101960.0,101950.0,0.60400691]
[1738166243013,0.247223,101960.0,101950.0,0.55180691]
[1738166243322,0.247223,101960.0,101950.0,0.91260691]
[1738166243502,0.302923,101960.0,101950.0,0.91260691]
[1738166243702,0.302923,101960.0,101950.0,0.54275217]
[1738166243903,0.75621509,101960.0,101950.0,0.34652017]
[1738166244114,0.75621509,101960.0,101950.0,0.29532017]
[1738166244510,0.39541509,101960.0,101950.0,0.29532017]
[1738166244705,0.39541509,101960.0,101950.0,0.73529847]
[1738166245208,0.302923,101960.0,101950.0,0.73529847]
[1738166249323,0.302923,101960.0,101950.0,0.37449847]
[1738166249526,0.39541509,101960.0,101950.0,0.17825547]
[1738166249714,0.40531731,101960.0,101950.0,0.17825547]
[1738166249911,0.31282522,101960.0,101950.0,0.73529847]
[1738166252311,0.302923,101960.0,101950.0,0.73529847]
[1738166252517,0.557014,101970.0,101960.0,0.196223]
[1738166252819,0.557014,101970.0,101960.0,0.28871509]
[1738166253426,0.557014,101970.0,101960.0,0.196223]
[1738166254627,0.559014,101970.0,101960.0,0.196223]
[1738166255728,0.198214,101970.0,101960.0,0.196223]
[1738166255928,0.198214,101970.0,101960.0,0.557023]
[1738166258318,0.198214,101970.0,101960.0,0.64951509]
[1738166258522,0.198214,101970.0,101960.0,0.70031509]
[1738166258831,0.198214,101970.0,101960.0,0.87642372]
[1738166259131,0.198214,101970.0,101960.0,0.78393163]
[1738166261421,0.198214,101970.0,101960.0,0.79379246]
[1738166262031,0.002,101970.0,101960.0,0.88628455]
[1738166262624,0.196151,102000.0,101990.0,0.196156]
[1738166262825,0.37139998,102000.0,101990.0,0.28864809]
[1738166263029,0.37139998,102000.0,101990.0,0.196156]
[1738166263634,0.46389207,102000.0,101990.0,0.196156]
[1738166264228,0.46689207,102000.0,101990.0,0.196156]
[1738166264635,0.37439998,102000.0,101990.0,0.196156]
[1738166265025,0.53904898,102000.0,101980.0,0.14533893]
[1738166265225,0.196166,101990.0,101980.0,0.24902584]
[1738166266745,0.203166,101990.0,101980.0,0.25002584]
[1738166267551,0.203166,101990.0,101980.0,0.42613447]
[1738166270151,0.009,101990.0,101980.0,0.51862656]
[1738166270350,0.009,101990.0,101980.0,0.87942656]
[1738166270741,0.00161799,102010.0,102000.0,0.196146]
[1738166270947,0.00161799,102010.0,102000.0,0.70013809]
[1738166271148,0.19774499,102010.0,102000.0,0.70013809]
[1738166271547,0.51894504,102010.0,102000.0,0.607646]
[1738166272552,0.32281804,102010.0,102000.0,0.968446]
[1738166272755,0.32134689,102010.0,102000.0,1.15343018]
[1738166273359,0.72765727,102030.0,102000.0,1.25728418]
[1738166273550,0.72765727,102030.0,102020.0,0.64940009]
[1738166273949,0.72765727,102030.0,102020.0,0.69930009]
[1738166274759,0.92474627,102030.0,102020.0,0.556908]
[1738166276060,0.197089,102030.0,102020.0,0.556908]
[1738166277150,0.198089,102030.0,102020.0,0.556908]
[1738166277862,0.198089,102030.0,102020.0,0.64940009]
[1738166278065,0.198089,102030.0,102020.0,0.65941708]
[1738166278655,0.198089,102030.0,102020.0,0.66041708]
[1738166280662,0.002,102030.0,102020.0,0.66041708]
[1738166280962,0.002,102030.0,102020.0,1.02121708]
[1738166285669,0.198089,102030.0,102020.0,1.02121708]
[1738166286662,0.198089,102030.0,102020.0,0.20712499]
[1738166286866,0.298989,102030.0,102020.0,0.56792499]
[1738166287566,0.0509,102030.0,102020.0,0.66041708]
[1738166287968,0.002,102030.0,102020.0,0.66041708]
[1738166288263,0.002,102030.0,102020.0,0.75290917]
[1738166288466,0.00014684,102040.0,102030.0,0.196089]
[1738166288671,0.00014684,102040.0,102030.0,0.84117318]
[1738166289174,0.29891024,102060.0,102050.0,0.19605]
[1738166289371,0.29891024,102060.0,102050.0,0.28854209]
[1738166289755,0.29891024,102060.0,102050.0,0.64934209]
[1738166289959,0.30887542,102060.0,102050.0,0.64934209]
[1738166290156,0.29891024,102060.0,102050.0,0.64934209]
[1738166290370,0.30091024,102060.0,102050.0,0.64934209]
[1738166290668,0.30091024,102060.0,102050.0,0.55685]
[1738166291470,0.30091024,102060.0,102050.0,0.55785]
[1738166291669,0.30791024,102060.0,102050.0,0.65034209]
[1738166292064,0.30791024,102060.0,102050.0,0.66010564]
[1738166299077,0.30791024,102060.0,102050.0,0.56761355]
[1738166300382,0.76120233,102060.0,102050.0,0.001]
[1738166303778,0.87780685,102060.0,102050.0,0.001]
[1738166304371,0.97029894,102060.0,102050.0,0.001]
[1738166304586,0.19605,102050.0,102040.0,0.00014684]
[1738166304781,0.70034209,102050.0,102040.0,0.00014684]
[1738166306182,0.196089,102030.0,102020.0,0.41147666]
[1738166306388,0.64938109,102030.0,102020.0,0.41147666]
[1738166306588,0.69878109,102030.0,102020.0,0.41147666]
[1738166307383,0.245489,102030.0,102020.0,0.41147666]
[1738166307687,0.245489,102030.0,102020.0,0.60958466]
[1738166307992,0.245489,102030.0,102020.0,0.61058466]
[1738166308286,0.245489,102030.0,102020.0,0.20057826]
[1738166309275,0.245489,102030.0,102020.0,0.65387035]
[1738166309478,0.196089,102030.0,102020.0,0.75567035]
[1738166309684,0.28958109,102030.0,102020.0,0.55937826]
[1738166309884,0.28958109,102030.0,102020.0,0.19857826]
[1738166310085,0.28958109,102030.0,102020.0,0.55837826]
[1738166310983,0.09349209,102030.0,102010.0,0.60626724]
[1738166311184,0.296808,102020.0,102010.0,0.60626724]
[1738166311384,0.296808,102020.0,102010.0,0.37145573]
[1738166311892,0.296808,102020.0,102010.0,0.37146873]
[1738166312795,0.296808,102020.0,102010.0,0.37346873]
[1738166313087,0.196096,102030.0,102020.0,0.19609]
[1738166313294,0.196096,102030.0,102020.0,0.55689]
[1738166314183,0.28858809,102030.0,102020.0,0.3608]
[1738166314687,0.28958809,102030.0,102020.0,0.3608]
[1738166315393,0.28958809,102030.0,102020.0,0.556908]
[1738166315889,0.197096,102030.0,102020.0,0.556908]
[1738166316688,0.197096,102030.0,102020.0,0.64940009]
[1738166318685,0.196096,102030.0,102020.0,0.556908]
[1738166318991,0.196096,102030.0,102020.0,0.65140009]
[1738166319592,0.196096,102030.0,102020.0,0.70040009]
[1738166319788,0.196096,102030.0,102020.0,0.607908]
[1738166320095,0.28858809,102030.0,102020.0,0.002]
[1738166320290,0.196096,102030.0,102020.0,0.002]
[1738166320487,0.196096,102030.0,102020.0,0.198108]
[1738166320689,0.196096,102030.0,102020.0,0.002]
[1738166320892,0.196096,102030.0,102020.0,0.198108]
[1738166321085,0.196096,102030.0,102020.0,0.558908]
[1738166321480,0.196096,102030.0,102020.0,0.3638]
[1738166321894,0.197096,102030.0,102020.0,0.557908]
[1738166322291,0.65038809,102030.0,102020.0,0.001]
[1738166322494,0.45429209,102030.0,102010.0,0.36094684]
[1738166322693,0.196108,102020.0,102010.0,0.82475082]
[1738166322890,0.196108,102020.0,102010.0,0.97545082]
[1738166323088,0.001,102030.0,102010.0,0.77933382]
[1738166323291,0.197093,102030.0,102020.0,0.64940009]
[1738166324595,0.00014684,102040.0,102030.0,0.196089]
[1738166324786,0.00014684,102040.0,102030.0,0.80008109]
[1738166325695,0.19621684,102040.0,102030.0,0.80008109]
[1738166326199,0.19621684,102040.0,102030.0,0.346789]
[1738166327399,0.19621684,102040.0,102030.0,0.0529]
[1738166327594,0.19721684,102040.0,102030.0,0.248989]
[1738166328799,0.19721684,102040.0,102030.0,0.25902592]
[1738166329703,0.29591684,102040.0,102030.0,0.25902592]
[1738166330389,0.29591684,102040.0,102030.0,0.35151801]
[1738166330591,0.29591684,102040.0,102030.0,0.71231801]
[1738166330786,0.00114684,102040.0,102030.0,0.71231801]
[1738166331503,0.19721684,102040.0,102030.0,0.71231801]
[1738166331797,0.00114684,102040.0,102030.0,0.71231801]
[1738166332389,0.00114684,102040.0,102030.0,0.8875129]
[1738166332590,0.19721684,102040.0,102030.0,0.79502081]
[1738166336000,0.29961684,102040.0,102030.0,0.79502081]
[1738166336404,0.29961684,102040.0,102030.0,0.8875129]
[1738166336799,0.29961684,102040.0,102030.0,0.79502081]
[1738166337003,0.29961684,102040.0,102030.0,1.02983232]
[1738166337305,0.29961684,102040.0,102030.0,0.7708064]
[1738166337699,0.29961684,102040.0,102030.0,0.9668954]
[1738166339297,0.29961684,102040.0,102030.0,0.6060954]
[1738166340599,0.29961684,102040.0,102030.0,0.4100064]
[1738166340799,0.66041684,102040.0,102030.0,0.4100064]
[1738166343403,0.29961684,102040.0,102030.0,0.6060954]
[1738166343808,0.75290893,102040.0,102030.0,0.4100064]
[1738166344310,0.39210893,102040.0,102030.0,0.6060954]
[1738166345114,0.75290893,102040.0,102030.0,0.4100064]
[1738166345605,0.75290893,102040.0,102030.0,0.17519489]
[1738166346304,0.762584,102040.0,102030.0,0.17519489]
[1738166350012,0.196089,102030.0,102020.0,0.6061094]
[1738166350403,0.196089,102030.0,102020.0,0.69860149]
[1738166350608,0.196089,102030.0,102020.0,1.05940149]
[1738166351416,0.196089,102030.0,102020.0,0.9679094]
[1738166352618,0.196089,102030.0,102020.0,0.9699094]
[1738166354718,0.196089,102030.0,102020.0,0.4130064]
[1738166355314,0.196089,102030.0,102020.0,0.9699144]
[1738166355717,0.28858109,102030.0,102020.0,0.4130064]
[1738166356020,0.34018109,102030.0,102020.0,0.4130064]
[1738166357417,0.247689,102030.0,102020.0,0.9699144]
[1738166358619,0.247689,102030.0,102020.0,0.9689144]
[1738166359920,0.33517763,102030.0,102020.0,0.73410289]
[1738166360911,0.33617763,102030.0,102020.0,0.73210289]
[1738166361621,0.28457763,102030.0,102020.0,0.73210289]
[1738166363624,0.28357763,102030.0,102020.0,0.73210289]
[1738166363826,0.73786972,102030.0,102020.0,0.4100064]
[1738166366222,0.37706972,102030.0,102020.0,0.4100064]
[1738166366619,0.37706972,102030.0,102020.0,0.6061144]
[1738166367123,0.37706972,102030.0,102020.0,0.9669144]
[1738166367317,0.49370219,102030.0,102020.0,0.556908]
[1738166369522,0.49370219,102030.0,102020.0,0.196108]
[1738166370226,0.49370219,102030.0,102020.0,0.556908]
[1738166370820,0.49370219,102030.0,102020.0,0.9669144]
[1738166371014,0.49370219,102030.0,102020.0,0.6061144]
[1738166371228,0.85450219,102030.0,102020.0,0.4100064]
[1738166372024,0.49370219,102030.0,102020.0,0.4100064]
[1738166372428,0.85450219,102030.0,102020.0,0.4100064]
[1738166372922,0.49370219,102030.0,102020.0,0.4100064]
[1738166373928,0.85450219,102030.0,102020.0,0.4100064]
[1738166374332,0.49370219,102030.0,102020.0,0.6061144]
[1738166374524,0.85450219,102030.0,102020.0,0.6061144]
[1738166374828,0.49370219,102030.0,102020.0,0.6061144]
[1738166375224,0.85450219,102030.0,102020.0,0.4100064]
[1738166375424,0.49370219,102030.0,102020.0,0.4100064]
[1738166375824,0.49370219,102030.0,102020.0,0.17519489]
[1738166376015,0.85450219,102030.0,102020.0,0.17519489]
[1738166376216,0.49370219,102030.0,102020.0,0.17519489]
[1738166376829,0.85450219,102030.0,102020.0,0.17519489]
[1738166377631,0.49370219,102030.0,102020.0,0.17519489]
[1738166378139,0.49370219,102030.0,102020.0,0.37130289]
[1738166378329,0.49370219,102030.0,102020.0,0.73210289]
[1738166379732,0.55196921,102030.0,102020.0,0.73210289]
[1738166383320,0.55196921,102030.0,102020.0,0.53599489]
[1738166383526,0.40621356,102030.0,102020.0,0.7708064]
[1738166383727,0.40621356,102030.0,102020.0,0.4100064]
[1738166383927,0.76701356,102030.0,102020.0,0.4100064]
[1738166384224,0.40621356,102030.0,102020.0,0.4100064]
[1738166384831,0.40621356,102030.0,102020.0,0.6061144]
[1738166385144,0.31372147,102030.0,102020.0,0.6061144]
[1738166385327,0.31372147,102030.0,102020.0,0.9669144]
[1738166388039,0.40621356,102030.0,102020.0,0.7708064]
[1738166388342,0.49391629,102030.0,102020.0,0.7708064]
[1738166388831,0.49391629,102030.0,102020.0,0.4100064]
[1738166389732,0.49391629,102030.0,102020.0,0.9669144]
[1738166391938,0.49391629,102030.0,102020.0,0.7708064]
[1738166392448,0.49391629,102030.0,102020.0,0.4100064]
[1738166394343,0.40621356,102030.0,102020.0,0.4100064]
[1738166394546,0.85950565,102030.0,102020.0,0.4100064]
[1738166394843,0.76701356,102030.0,102020.0,0.4100064]
[1738166395242,0.85950565,102030.0,102020.0,0.4100064]
[1738166398344,0.85850565,102030.0,102020.0,0.4110064]
[1738166398551,0.86550565,102030.0,102020.0,0.4110064]
[1738166399251,0.86650565,102030.0,102020.0,0.4110064]
[1738166399752,0.92440849,102030.0,102020.0,0.001]
[1738166399953,0.72031949,102030.0,102010.0,0.37146873]
[1738166400153,0.74850009,102020.0,102010.0,0.37146873]
[1738166400658,0.656008,102020.0,102010.0,0.37146873]
[1738166401348,0.656008,102020.0,102010.0,0.17534173]
[1738166401651,0.657008,102020.0,102010.0,0.00014684]
[1738166401838,0.706008,102020.0,102010.0,0.00014684]
[1738166404945,0.71576539,102020.0,102010.0,0.00014684]
[1738166405647,0.51965739,102020.0,101990.0,0.0957]
[1738166405946,0.3608,102000.0,101980.0,0.3608]
[1738166406147,0.196185,101980.0,101970.0,0.196196]
[1738166406848,0.196185,101980.0,101960.0,0.557553]
[1738166406849,0.196204,101970.0,101960.0,0.71475772]
[1738166407443,0.196194,101980.0,101970.0,0.196188]
[1738166407639,0.196194,101980.0,101970.0,0.556988]
[1738166408051,0.197194,101980.0,101970.0,0.564988]
[1738166410756,0.197194,101980.0,101970.0,0.566988]
[1738166412651,0.196194,101980.0,101970.0,0.558988]
[1738166412947,0.196194,101980.0,101970.0,0.564988]
[1738166414543,0.20613624,101990.0,101980.0,0.196185]
[1738166414747,0.20613624,101990.0,101980.0,0.340785]
[1738166415952,0.20613624,101990.0,101980.0,0.342785]
[1738166416153,0.20613624,101990.0,101980.0,0.703585]
[1738166416554,0.00014684,101990.0,101980.0,0.703585]
[1738166416849,0.19631284,101990.0,101980.0,0.703585]
[1738166417050,0.19631284,101990.0,101980.0,0.704585]
[1738166417453,0.00014684,101990.0,101980.0,0.704585]
[1738166417653,0.00014684,101990.0,101980.0,0.79692006]
[1738166420061,0.39977615,102010.0,101980.0,0.60073506]
[1738166420259,0.39977615,102010.0,102000.0,0.196146]
[1738166420461,0.40963155,102010.0,102000.0,0.196146]
[1738166420662,0.196146,102000.0,101990.0,0.55696]
[1738166420861,0.28848106,102000.0,101990.0,0.19616]
[1738166421363,0.196166,101990.0,101980.0,0.71363825]
[1738166421666,0.28850106,101990.0,101980.0,0.41084684]
[1738166421856,0.28850106,101990.0,101980.0,0.24623184]
[1738166422653,0.28850106,101990.0,101980.0,0.24423184]
[1738166422966,0.28850106,101990.0,101980.0,0.04804684]
[1738166423263,0.28850106,101990.0,101980.0,0.57537572]
[1738166423463,0.28850106,101990.0,101980.0,0.57737572]
[1738166424258,0.28850106,101990.0,101980.0,0.57837572]
[1738166425459,0.28850106,101990.0,101980.0,0.77456072]
[1738166425655,0.196166,101990.0,101980.0,0.77456072]
[1738166426768,0.64930106,101990.0,101980.0,0.53047572]
[1738166426963,0.88177498,101990.0,101980.0,0.17927183]
[1738166427667,0.94705498,101990.0,101980.0,0.17927183]
[1738166428072,0.85978106,101990.0,101980.0,0.00314684]
[1738166430583,1.00557571,101990.0,101980.0,0.00314684]
[1738166430966,1.00557571,101990.0,101980.0,0.00214684]
[1738166431180,0.64577571,101990.0,101980.0,0.00014684]
[1738166431380,1.00657571,101990.0,101980.0,0.00014684]
[1738166433182,1.0165228,101990.0,101980.0,0.00014684]
[1738166434078,0.8203568,101990.0,101960.0,0.60728481]
[1738166434278,0.28853906,101970.0,101960.0,0.72473447]
[1738166434780,0.79863906,101970.0,101960.0,0.52852347]
[1738166437278,0.89097412,101970.0,101960.0,0.52852347]
[1738166437479,0.79863906,101970.0,101960.0,0.53052347]
[1738166437680,0.79863906,101970.0,101960.0,0.53552347]
[1738166439684,1.00266389,101970.0,101960.0,0.007]
[1738166439882,0.91032883,101970.0,101960.0,0.203223]
[1738166440387,1.00266389,101970.0,101960.0,0.007]
[1738166441488,1.01255159,101970.0,101960.0,0.007]
[1738166442888,0.80852676,101970.0,101960.0,0.007]
[1738166443383,0.44772676,101970.0,101960.0,0.007]
[1738166443589,0.44772676,101970.0,101960.0,0.203223]
[1738166443886,0.80852676,101970.0,101960.0,0.203223]
[1738166444082,0.44772676,101970.0,101960.0,0.203223]
[1738166444283,0.80852676,101970.0,101960.0,0.203223]
[1738166444593,0.80852676,101970.0,101960.0,0.007]
[1738166446082,0.44772676,101970.0,101960.0,0.007]
[1738166446282,0.80852676,101970.0,101960.0,0.007]
[1738166447180,0.80852676,101970.0,101960.0,0.002]
[1738166447377,0.80952676,101970.0,101960.0,0.002]
[1738166448386,0.196223,101960.0,101950.0,0.19637884]
[1738166448589,0.64935806,101960.0,101950.0,0.19637884]
[1738166449093,0.64935806,101960.0,101950.0,0.00014684]
[1738166450692,0.64935806,101960.0,101950.0,0.00214684]
[1738166453094,0.64935806,101960.0,101950.0,0.00314684]
[1738166453592,0.64935806,101960.0,101950.0,0.19938984]
[1738166453995,0.64935806,101960.0,101950.0,0.00314684]
[1738166454295,0.28855806,101960.0,101950.0,0.00314684]
[1738166454595,0.28855806,101960.0,101950.0,0.19938984]
[1738166454596,0.37599727,101960.0,101950.0,0.19938984]
[1738166454981,0.73679727,101960.0,101950.0,0.00314684]
[1738166456194,0.73679727,101960.0,101950.0,0.19938984]
[1738166456698,0.64446221,101960.0,101950.0,0.25028984]
[1738166457284,0.73679727,101960.0,101950.0,0.25028984]
[1738166457897,0.37599727,101960.0,101950.0,0.25028984]
[1738166458196,0.37599727,101960.0,101950.0,0.2504813]
[1738166459098,0.28366221,101960.0,101950.0,0.2504813]
[1738166459690,0.08743921,101960.0,101950.0,0.70361636]
[1738166459997,0.26238027,101970.0,101960.0,0.196223]
[1738166460197,0.26238027,101970.0,101960.0,0.74185806]
[1738166460499,0.17510042,101980.0,101970.0,0.196204]
[1738166460689,0.17510042,101980.0,101970.0,0.74167412]
[1738166460884,0.2347428,102000.0,101970.0,0.95956012]
[1738166461201,0.2347428,102000.0,101990.0,0.64930106]
[1738166461385,0.2347428,102000.0,101990.0,1.01010106]
[1738166461589,0.2347428,102000.0,101990.0,1.05630106]
[1738166461789,0.20608826,102020.0,102010.0,0.196127]
[1738166462094,0.20608826,102020.0,102010.0,0.64926206]
[1738166463200,0.29014184,102030.0,102020.0,0.196108]
[1738166463699,0.3824769,102030.0,102020.0,0.196108]
[1738166464095,0.7432769,102030.0,102020.0,0.196108]
[1738166464486,0.24394184,102030.0,102020.0,0.196108]
[1738166464695,0.04784684,102030.0,102020.0,0.556908]
[1738166464892,0.05384684,102030.0,102020.0,0.557908]
[1738166465387,0.00614684,102030.0,102020.0,0.65024306]
[1738166465794,0.00614684,102030.0,102020.0,0.69894306]
[1738166466297,0.2945709,102030.0,102020.0,0.197108]
[1738166466503,0.6553709,102030.0,102020.0,0.197108]
[1738166467699,0.7028709,102030.0,102020.0,0.197108]
[1738166467906,0.3430709,102030.0,102020.0,0.197108]
[1738166468108,0.8830709,102030.0,102020.0,0.197108]
[1738166468408,0.3430709,102030.0,102020.0,0.197108]
[1738166468906,0.25073584,102030.0,102020.0,0.197108]
[1738166469291,0.61153584,102030.0,102020.0,0.197108]
[1738166469696,0.25073584,102030.0,102020.0,0.197108]
[1738166472500,0.7038709,102030.0,102020.0,0.197108]
[1738166472804,0.7038709,102030.0,102020.0,0.001]
[1738166473401,0.61153584,102030.0,102020.0,0.197108]
[1738166473604,0.25073584,102030.0,102020.0,0.197108]
[1738166474005,0.7038709,102030.0,102020.0,0.001]
[1738166474891,0.7038709,102030.0,102020.0,0.197108]
[1738166475105,0.61153584,102030.0,102020.0,0.197108]
[1738166477203,0.7038709,102030.0,102020.0,0.001]
[1738166478707,0.79620596,102030.0,102020.0,0.001]
[1738166479101,0.196127,102010.0,102000.0,0.00014684]